Cogmind - Beta 9.4 @@@ ROGUE MODE // 2020.03.27 @ 23:05:44 Player: Gitida Result: Destroyed by S-10 Pest with Light Assault Rifle Performance ------------- Evolutions (1) 500 Regions Visited (3) 600 Robots Destroyed (42) 210 Value Destroyed (1097) 1097 Prototype IDs (4) 80 Alien Tech Used (0) 0 Bonus (0) 0 TOTAL SCORE: 2487 Bonus ------- None Cogmind --------- Core Integrity 0/400 Matter 290/300 Energy 89/100 System Corruption 0% Temperature Cool (0) Movement Core (50) Location -9/Materials Parts ------- > --- POWER (1) -------- (None) > --- PROPULSION (3) --- (None) > --- UTILITY (3) ------ (None) > --- WEAPON (2) ------- Mace > --- INVENTORY (4) ---- High-capacity Storage Unit Sensor Array Peak State ------------ > --- POWER ------------ Ion Engine > --- PROPULSION ------- Light Treads Light Treads > --- UTILITY ---------- Improved Heat Sink Medium Storage Unit > --- WEAPON ----------- Small Laser Mini Grenade Launcher > --- INVENTORY -------- Heat Sink High-capacity Storage Unit Sensor Array Medium Laser Small Laser Small Laser Particle Gun Mini Grenade Launcher [Rating: 11] Favorites ----------- Power Ion Engine Engine Ion Engine Propulsion Light Treads Treads Light Treads Leg Aluminum Leg Utility Improved Heat Sink Device Improved Heat Sink Storage Small Storage Unit Weapon Small Laser Energy Gun Small Laser Ballistic Gun Light Assault Rifle Launcher Mini Grenade Launcher Special Weapon Welding Torch Impact Weapon Mace Build | -11 -10 -10 -9 ------- Run | Scr Mat Min Mat Slots Evolved 2 | . . . 2 Power . | . . . . Propulsion 1 | . . . 1 Utility 1 | . . . 1 Weapon . | . . . . Parts Attached 35 | 6 7 14 8 Power 2 | 1 1 . . Engine 2 | 1 1 . . Core . | . . . . Reactor . | . . . . Propulsion 6 | 2 1 2 1 Treads 5 | 2 1 2 . Leg 1 | . . . 1 Wheel . | . . . . Hover . | . . . . Flight . | . . . . Utility 6 | 1 1 3 1 Device 4 | . 1 2 1 Storage 2 | 1 . 1 . Processor . | . . . . Hackware . | . . . . Protection . | . . . . Artifact . | . . . . Weapon 21 | 2 4 9 6 Energy Gun 12 | 2 2 6 2 Energy Cannon . | . . . . Ballistic Gun 1 | . 1 . . Ballistic Cannon . | . . . . Launcher 6 | . 1 3 2 Special Weapon 1 | . . . 1 Impact Weapon 1 | . . . 1 Slashing Weapon . | . . . . Piercing Weapon . | . . . . Special Melee Weapon . | . . . . Unidentified Prototypes . | . . . . Parts Lost 18 | . . 8 10 Power 1 | . . 1 . Propulsion 4 | . . 3 1 Utility 4 | . . 1 3 Weapon 9 | . . 3 6 Highest Loss Streak 4 | . . 4 4 Average Slot Usage (%) 89 | . 97 87 44 Engine 11 | . 14 10 . Treads 23 | . 27 21 . Device 12 | . 11 13 13 Storage 13 | . 14 14 10 Energy Gun 13 | . 12 20 4 Ballistic Gun 8 | . 11 2 . Launcher 4 | . 3 4 5 Naked Turns 16 | . . . 16 Heaviest Build 17 | 10 12 17 12 Greatest Support 40 | 40 40 40 10 Greatest Overweight (x) 4 | . . 4 2 Average Overweight (x) . | . . . . Largest Inventory Capacity 8 | 6 6 8 8 Average Capacity 6 | 5 6 7 7 Most Carried 8 | 4 6 8 7 Average Carried 5 | 1 5 7 2 Final Capacity 8 | 6 6 8 4 Final Carried 8 | 2 6 8 2 Class Distribution -------------------- 88% | Mutant 11% | Scavenger-Mutant Dominant Class ---------------- Mutant | -10/Materials Mutant | -10/Mines Mutant | -9/Materials Resources | -11 -10 -10 -9 ----------- Run | Scr Mat Min Mat Matter Collected 720 | 231 214 185 90 Remotely . | . . . . Salvage Created 1197 | . 511 454 232 Parts 78 | . 39 26 13 Haulers Intercepted 1 | . 1 . . Recyclers Shooed 2 | . 2 . . Parts Field Recycled . | . . . . Retrieved Matter . | . . . . Parts Self-Destructed . | . . . . Prevented . | . . . . Kills | -11 -10 -10 -9 ------- Run | Scr Mat Min Mat Combat Hostiles Destroyed 36 | . 19 12 5 Melee 1 | . . . 1 Guns 22 | . 13 9 . AOE 13 | . 6 3 4 Classes Destroyed 8 | . 3 1 4 Builder 1 | . . . 1 Tunneler 2 | . . 2 . Hauler 1 | . 1 . . Recycler 1 | . . . 1 Watcher 1 | . . . 1 Swarmer 10 | . 9 . 1 Grunt 25 | . 10 12 3 Sentry 1 | . . . 1 Best Kill Streak 6 | . 3 5 6 Combat Bots Only 3 | . 3 3 3 Max Kills in Single Turn 5 | . 1 5 3 Gunslinging . | . . . . Exploded 3 | . 1 3 2 Melee 1 | . . . 1 Uniques/NPCs Destroyed . | . . . . Combat | -11 -10 -10 -9 -------- Run | Scr Mat Min Mat Damage Taken 2195 | . 581 758 856 Core 647 | . 97 145 405 Absorbed by Shields . | . . . . Core Remaining (%) 51 | 100 . 3 . Volleys Fired 102 | . 53 30 19 Largest 2 | . 2 2 2 Hottest 105 | . 90 105 80 Shots Fired 174 | . 97 55 22 Gun 144 | . 87 48 9 Cannon . | . . . . Launcher 23 | . 10 7 6 Special 7 | . . . 7 Kinetic 26 | . 26 . . Thermal 125 | . 61 48 16 Explosive 23 | . 10 7 6 Electromagnetic . | . . . . Robot Hit Streak 14 | . 14 13 8 Robot Miss Streak 5 | . 4 5 3 Penetration Max . | . . . . Secondary Targets 2 | . 1 1 . Max Gunslinging Chain 1 | . 1 1 . Shots Hit Robots 114 | . 65 37 12 Core Hits 73 | . 36 25 12 Critical Hits . | . . . . Critical Kills . | . . . . Critical Parts Destroyed . | . . . . Melee Attacks 1 | . . . 1 Impact 1 | . . . 1 Slashing . | . . . . Piercing . | . . . . Sneak Attacks . | . . . . Combat Hostiles . | . . . . Follow-up Attacks . | . . . . Damage Inflicted 2592 | . 1149 908 535 Guns 1234 | . 679 504 51 Cannons . | . . . . Explosions 1310 | . 452 397 461 Melee 12 | . . . 12 Ramming 32 | . 18 7 7 Kinetic 152 | . 152 . . Thermal 1086 | . 527 504 55 Explosive 1310 | . 452 397 461 Electromagnetic . | . . . . Impact 12 | . . . 12 Slashing . | . . . . Piercing . | . . . . Highest Corruption 4 | . 1 4 . Average Corruption 1 | . 1 1 . Corruption Purged . | . . . . Effects 12 | . 6 6 . Message Errors 7 | . 3 4 . Energy Discharges 4 | . 2 2 . Data Loss (minor) 1 | . 1 . . Overload Shots . | . . . . Overflow Damage 7 | . . 1 6 Projectiles . | . . . . Explosions 7 | . . 1 6 Melee . | . . . . Knockbacks . | . . . . Impact . | . . . . Kinetic . | . . . . Secondary . | . . . . Self-Inflicted Damage 94 | . 51 40 3 Shots 3 | . 2 1 . Rammed 10 | . 6 1 3 Targets Rammed 10 | . 6 1 3 Kicked . | . . . . Crushed . | . . . . Highest Temperature 264 | . 264 36 . Average Temperature 58 | . 78 11 . Received Heat Transfer 657 | . 210 261 186 Effects 1 | . 1 . . Energy Bleed 1 | . 1 . . Siege Activations . | . . . . Robots Corrupted . | . . . . Combat Hostiles . | . . . . Parts Fried . | . . . . Impact Corruptions . | . . . . Robots Melted . | . . . . Combat Hostiles . | . . . . Parts Melted 1 | . . 1 . Heat Transferred 2733 | . 1293 1265 175 Parts Sabotaged . | . . . . Parts Stolen . | . . . . Parts Stripped . | . . . . Power Chain Reactions . | . . . . Missiles Intercepted . | . . . . Alert | -11 -10 -10 -9 ------- Run | Scr Mat Min Mat Peak Influence 182 | . 182 180 174 Average Influence 76 | . 70 96 81 Maximum Alert Level . | . . . . Low Security (%) 100 | 100 100 100 100 Level 1 . | . . . . Level 2 . | . . . . Level 3 . | . . . . Level 4 . | . . . . Level 5 . | . . . . High Security . | . . . . Max Security . | . . . . Squads Dispatched 4 | . 3 . 1 Investigation 2 | . 2 . . Extermination . | . . . . Reinforcement 2 | . 1 . 1 Assault . | . . . . Garrison . | . . . . Intercept . | . . . . Construction Impeded 1 | . . . 1 Haulers Reinforced . | . . . . Stealth | -11 -10 -10 -9 --------- Run | Scr Mat Min Mat Distress Signals 5 | . 2 . 3 Communications Jammed . | . . . . Distress Signals . | . . . . Times Spotted 74 | . 37 15 22 Peak Tracking Total 12 | . 5 3 12 Tactical Retreats 7 | . 2 1 4 Traps | -11 -10 -10 -9 ------- Run | Scr Mat Min Mat Traps Triggered 1 | . 1 . . Indirectly . | . . . . Trap Hack Attempts . | . . . . Triggered . | . . . . Disarmed . | . . . . Reprogrammed . | . . . . Reused . | . . . . Traps Extracted . | . . . . Installed . | . . . . Triggered . | . . . . Machines | -11 -10 -10 -9 ---------- Run | Scr Mat Min Mat Machines Disabled 3 | . 1 . 2 Max in Single Turn 1 | . 1 . 1 Machines Sabotaged . | . . . . Garrisons Compromised . | . . . . Overloaded Fab Kills . | . . . . Fab Network Shutdowns . | . . . . Hacking | -11 -10 -10 -9 --------- Run | Scr Mat Min Mat Machines Accessed 6 | . 6 . . Terminals 5 | . 5 . . Fabricators . | . . . . Repair Stations 1 | . 1 . . Recycling Units . | . . . . Scanalyzers . | . . . . Garrison Access . | . . . . Total Hacks 13 | . 13 . . Successful 7 | . 7 . . Failed 6 | . 6 . . Catastrophic 1 | . 1 . . Database Lockouts . | . . . . Manual 5 | . 5 . . Terminals 11 | . 11 . . Fabricators . | . . . . Repair Stations 2 | . 2 . . Recycling Units . | . . . . Scanalyzers . | . . . . Garrison Access . | . . . . Terminal Hacks 5 | . 5 . . Prototype ID Bank 2 | . 2 . . Branch Access Points 1 | . 1 . . Unreport Threat 1 | . 1 . . Hauler Manifests 1 | . 1 . . Fabricator Hacks . | . . . . Repair Station Hacks 2 | . 2 . . Scan Component 1 | . 1 . . Repair 1 | . 1 . . Recycling Unit Hacks . | . . . . Scanalyzer . | . . . . Garrison Access Hacks . | . . . . Unauthorized Hacks . | . . . . Terminals . | . . . . Fabricators . | . . . . Repair Stations . | . . . . Recycling Units . | . . . . Scanalyzers . | . . . . Garrison Access . | . . . . Data Cores Recovered . | . . . . Used . | . . . . Hacking Detections 5 | . 5 . . Full Trace Events 1 | . 1 . . Feedback Events 1 | . 1 . . Corruption 1 | . 1 . . Feedback Blocked . | . . . . Robot Schematics Acquired . | . . . . Robots Built . | . . . . Matter . | . . . . Time . | . . . . Total Robot Build Rating . | . . . . Part Schematics Acquired . | . . . . Parts Built . | . . . . Matter . | . . . . Time . | . . . . Total Part Build Rating . | . . . . Parts Repaired 1 | . 1 . . Time 26 | . 26 . . Parts Recycled . | . . . . Recycled Matter . | . . . . Retrieved Matter . | . . . . Retrieved Components . | . . . . Parts Scanalyzed . | . . . . Part Schematics Acquired . | . . . . Parts Damaged . | . . . . Bothacking | -11 -10 -10 -9 ------------ Run | Scr Mat Min Mat Used RIF Installer . | . . . . Robots Hacked . | . . . . Non-combat . | . . . . Combat . | . . . . Robot Hacks Applied . | . . . . Relay Couplers Released . | . . . . Robots Rewired . | . . . . Allies Hacked . | . . . . Hacks Repelled . | . . . . Allies | -11 -10 -10 -9 -------- Run | Scr Mat Min Mat Total Allies . | . . . . Largest Group . | . . . . Highest-Rated Group . | . . . . Highest-Rated Ally . | . . . . Total Orders . | . . . . Ally Attacks . | . . . . Total Damage . | . . . . Kills . | . . . . Allies Corrupted . | . . . . Allies Melted . | . . . . Intel | -11 -10 -10 -9 ------- Run | Scr Mat Min Mat Robot Analysis Total . | . . . . Derelict Logs Recovered 1 | . . 1 . Drone Launches . | . . . . Drone Recoveries . | . . . . Exploration | -11 -10 -10 -9 ------------- Run | Scr Mat Min Mat Turns Passed 2424 | 70 1486 641 227 Spaces Moved 1298 | 37 788 325 148 Core 43 | 2 . 4 37 Treads 1144 | 35 788 321 . Legs 111 | . . . 111 Wheels . | . . . . Hover . | . . . . Flight . | . . . . Fastest Speed 50 | 50 160 160 50 Average Speed 154 | 154 160 160 113 Slowest Speed 250 | 160 160 250 150 Overloaded Moves . | . . . . Propulsion Burnouts . | . . . . Robots Hopped . | . . . . Cave-ins Triggered 1 | . . 1 . Exploration Rate (%) 43 | 3 95 50 27 Regions Visited 3 Branch Regions 1 Pre-discovered Areas . | . . . . Known Exits Taken 1 | . 1 . . Unknown Exits Taken 2 | 1 . 1 . Scrap Searched 1 | . . 1 . Spaces Dug . | . . . . Terrain Destroyed 176 | . 79 62 35 Melee . | . . . . Projectile . | . . . . AOE 176 | . 79 62 35 Actions | -11 -10 -10 -9 --------- Run | Scr Mat Min Mat Total 1536 | 50 919 386 181 Wait 59 | . 52 7 . Move 1295 | 36 787 324 148 Hop . | . . . . Pick Up 26 | 8 9 7 2 Fast Attach 1 | . 1 . . Attach 20 | 6 1 5 8 Detach 1 | . . 1 . Swap 14 | . 5 9 . Drop 7 | . 5 2 . Fire 102 | . 53 30 19 Melee 1 | . . . 1 Ram 2 | . . . 2 Kick 1 | . . . 1 Crush 7 | . 6 1 . Escape Stasis . | . . . . Rewire . | . . . . Trap . | . . . . Miscellaneous . | . . . . Route ------- -11/Scrapyard -10/Materials (discovered 5 exits: [*Mat x3] / *Min x2) -10/Mines -9/Materials (discovered 1 exit: *Min) History --------- Turn | Location | Event 47 | -11/Scrapyard | Discovered new exit (range 14) 71 | -11/Scrapyard | Entered Materials 300 | -10/Materials | Build established: Mutant 304 | -10/Materials | Discovered new exit (range 13) 525 | -10/Materials | Discovered new exit (range 7) 576 | -10/Materials | Identified exit to Mines 724 | -10/Materials | Repaired Lgt. Treads 855 | -10/Materials | Discovered new exit (range 14) 1557 | -10/Materials | Entered Mines 1674 | -10/Mines | Excavation squad dispatched 1674 | -10/Mines | A large section of the Mines collapsed 1889 | -10/Mines | Core integrity fell below 50% 1924 | -10/Mines | Excavation squad dispatched 2015 | -10/Mines | Crushed by falling debris 2042 | -10/Mines | Core integrity fell below 20% 2063 | -10/Mines | Lost 4 parts (1p1n1u1w) 2076 | -10/Mines | Discovered new exit (range 7) 2198 | -10/Mines | Entered Materials 2198 | -9/Materials | Evolved 2 slots: Propulsion x1, Utility x1 2199 | -9/Materials | Identified exit to Mines 2303 | -9/Materials | Lost 4 parts (1u3w) 2402 | -9/Materials | Core integrity fell below 50% 2415 | -9/Materials | Core integrity fell below 20% 2425 | -9/Materials | Destroyed by S-10 Pest with Light Assault Rifle Last Messages --------------- U-05 Engineer builds a Wall. R-06 Scavenger collects Sml. Laser. U-05 Engineer destroyed. R-06 Scavenger collects Wheel. Acquired 54 matter. R-06 Scavenger collects Ion Engine. Acquired Welding Torch. W-16 Scout sends out distress signal. C-30 ARC bursts open, deploying its payload. S-10 Pest unfolds itself. Slammed into K-01 Serf. T-07 Excavator is excavating. Aluminum Leg destroyed. T-07 Excavator is excavating. Welding Torch destroyed. Slammed into S-10 Pest. Med. Storage Unit destroyed. Heat Sink destroyed. Acquired Mace. S-10 Pest destroyed. Map ----- +----------------------------------------------------+ | ?????????????????????????????????????? | | ?????????????????????????????????????? | | ?????????????????????????????????????? | | ###??????????????????????????????????? | | #??????????????????????????????????? | | #??????????????????????????????????? | | #??????????????????????????????????? | | #??????????????????????????????????? | | #??????????????????????????????????? | | #??????????????????????????????????? | | ?????###+##????????????????????????? | | /####### #????????????????????????? | | #????????????????????????? | | +????????????????????????? | | ### #### #????????????????????????? | | ??#+#??## ## ???????????????????????? | | ?? ???# ## ??????????????????????? | | ?? ???# #? "?????????????????????? | | ? ??# #?? ????????????????????? | | ? ??# #####/########????????????? | | ?+ #????????????? | | ?# #????????????? | | #+######+## ##########??????? | | ??????? # # #??????? | | #?????? # sss= #??????? | | #########?????""" + # s%@ #??????? | | ??????????????""" # # = ** #??????? | | ????????????? """ #### * #??????? | | ????????????? """ #??#"S #??????? | | ????????????" ?"" #??#"""Y #??????? | | ???????????? ???? #??# "" #??????? | | ?????????????????#???# #??????? | | ?????????????????????### ######??????? | | ???????????????????????##????????????? | | | | | | | | | | | | | | | | | | | | | | | | | | | | | | | | | +----------------------------------------------------+ Best States ------------- Heat Dissipation 52 Energy Generation 10 Energy Capacity 250 Matter Stores 300 Matter Capacity 300 Sight Range 16 Terrain Scan Density 10 Evasion (%) 50 Recoil Reduction 2 Item Schematics ----------------- None Robot Schematics ------------------ None Fabricated ------------ Nothing Alien Tech Used ----------------- None Achievements -------------- None Challenges ------------ None Game ------ Seed StorageProtonRipper Manual? 0 Play Time 00:16:35 Cumulative 117.1 hours Start 2020.03.27 @ 22:50:52 End 2020.03.27 @ 23:05:44 Sessions 1 Manual Loads 0 Difficulty Rogue Special Mode None Game No. 129 Rogue 129 Adventurer 0 Explorer 0 Win Type - Total 2 Types 2/0/0/0/0/0/0 Lore% 63 Gallery% 61 Achievement% 47 Wizard Run 0 Options --------- ASCII 0 Keyboard 0 Movement Numpad Keybinds 0 Fullscreen 1 Font 12/Terminus Map View 83x54 Tactical HUD 0 Map Filters NONE Filters NONE Steam 1 RUN: 6c43029e-13f7-4c14-a042-fcacb45defef